fUSD/lending_fUSD_20260311
["ID","MTS","AMOUNT","RATE_DAILY","PERIOD"]
[408189031,1773197432032,-4254.6408264,0.00013855,2]
[408189032,1773197432041,-204.30932807,0.00013873,2]
[408189033,1773197432050,-500.0,0.00013954,2]
[408189034,1773197432060,-500.0,0.00013954,2]
[408189035,1773197432069,-152.84656754,0.00013954,2]
[408189036,1773197432079,-500.0,0.00013954,2]
[408189037,1773197432088,-203.15938151,0.00013954,2]
[408189038,1773197432098,-150.0,0.00013954,2]
[408189039,1773197432107,-113463.10489402,0.00013955,2]
[408189040,1773197432122,-9129.18434473,0.00013955,2]
[408189041,1773197432134,-8849.32427774,0.00013955,2]
[408189047,1773197437707,-9236.46989547,0.00013873,2]
[408189048,1773197437716,-6624.46793281,0.00013955,2]
[408189049,1773197437866,-993456.0436507,0.00013955,2]
[408189050,1773197437876,-500.0,0.00013973,2]
[408189051,1773197437886,-500.0,0.00013973,2]
[408189052,1773197437895,-503.02080856,0.00013973,2]
[408189053,1773197437909,-500.0,0.00014164,2]
[408189054,1773197437918,-500.0,0.00014164,2]
[408189055,1773197437928,-500.0,0.00014164,2]
[408189056,1773197437937,-500.0,0.00014164,2]
[408189057,1773197437947,-483.10034439,0.00014446,2]
[408189058,1773197437956,-483.10034437,0.00014446,2]
[408189059,1773197437965,-483.10034441,0.00014466,2]
[408189061,1773197437974,-483.10034441,0.00014466,2]
[408189063,1773197437988,-483.10034441,0.00014466,2]
[408189065,1773197437998,-483.10034441,0.00014466,2]
[408189067,1773197438007,-483.10034441,0.00014466,2]
[408189069,1773197438016,-483.10034441,0.00014466,2]
[408189071,1773197438027,-483.10034441,0.00014466,2]
[408189073,1773197438037,-483.10034441,0.00014466,2]
[408189075,1773197438046,-500.76663095,0.00014521,2]
[408189076,1773197438056,-527.85855313,0.00014617,2]
[408189077,1773197438066,-3104.99020897,0.00014808,2]
[408189078,1773197438075,-204.12,0.00015,2]
[408189080,1773197438084,-973.11746355,0.00015,30]
[408189081,1773197438094,-573.13516927,0.00015,30]
[408189082,1773197438104,-518.85269594,0.00015,30]
[408189083,1773197438117,-500.0,0.00015,30]
[408189084,1773197438127,-500.0,0.00015,30]
[408189085,1773197438137,-500.0,0.00015,30]
[408189086,1773197438146,-500.0,0.00015,30]
[408189087,1773197438155,-500.0,0.00015,30]
[408189088,1773197438165,-500.0,0.00015,30]
[408189089,1773197438174,-500.0,0.00015,30]
[408189090,1773197438183,-500.0,0.00015,30]
[408189091,1773197438192,-500.0,0.00015,30]
[408189092,1773197438201,-500.0,0.00015,30]
[408189093,1773197438210,-785.34830729,0.00015,30]
[408189094,1773197438220,-500.0,0.00015,30]
[408189095,1773197438231,-500.0,0.00015,30]
[408189096,1773197438241,-500.0,0.00015,30]
[408189097,1773197438250,-500.0,0.00015,30]
[408189098,1773197438259,-500.0,0.00015,30]
[408189099,1773197438269,-500.0,0.00015,30]
[408189100,1773197438278,-500.0,0.00015,30]
[408189101,1773197438287,-500.0,0.00015,30]
[408189102,1773197438297,-500.0,0.00015,30]
[408189103,1773197438311,-489.20351924,0.00015,30]
[408189104,1773197438322,-501.07323521,0.00015,30]
[408189105,1773197438331,-500.0,0.00015,30]
[408189106,1773197438340,-255.0,0.0001507,2]
[408189107,1773197438350,-600.0,0.00015103,2]
[408189108,1773197438359,-250.0,0.00015103,2]
[408189109,1773197438369,-4173.45345158,0.00015104,2]
[408189110,1773197438379,-420.0,0.00015121,2]
[408189111,1773197438389,-1680.0,0.00015178,2]
[408189112,1773197438399,-543.15177768,0.0001518,2]
[408189113,1773197438409,-5000.0,0.0001518,2]
[408189114,1773197438419,-204.12,0.00015274,2]
[408189115,1773197438428,-204.14,0.00015548,2]
[408189116,1773197438437,-371.737028,0.00015583,7]
[408189117,1773197438446,-2966.26,0.00015927,2]
[408189118,1773197438455,-159.315868,0.0001604,7]
[408189119,1773197438465,-210.45,0.00016069,2]
[408189120,1773197438473,-433.0,0.0001627,2]
[408189121,1773197438483,-2966.26,0.00016325,2]
[408189122,1773197438492,-411.0,0.00016346,2]
[408189123,1773197438505,-853.0,0.00016403,2]
[408189124,1773197438514,-500.0,0.00016438,2]
[408189125,1773197438523,-500.0,0.00016438,2]
[408189126,1773197438534,-500.0,0.00016438,2]
[408189127,1773197438543,-500.0,0.00016438,2]
[408189128,1773197438552,-500.0,0.00016438,2]
[408189129,1773197438561,-203.93,0.00016438,2]
[408189130,1773197438571,-587.0,0.00016569,2]
[408189131,1773197438580,-292.34273758,0.00016597,2]
[408189132,1773197438589,-548.0,0.00016607,2]
[408189133,1773197438599,-2351.0,0.00016696,2]
[408189134,1773197438610,-269.07433783,0.00016712,2]
[408189135,1773197438619,-2966.26,0.00016724,2]
[408189136,1773197438630,-500.0,0.00016921,2]
[408189137,1773197438640,-6163.82,0.00016927,2]
[408189138,1773197438651,-502.0,0.00017,2]
[408189139,1773197438661,-2966.26,0.00017122,2]
[408189140,1773197438671,-5875.45,0.00017334,2]
[408189141,1773197438680,-2966.26,0.0001752,2]
[408189142,1773197438691,-1600.0,0.00017558,2]
[408189143,1773197438703,-224.0,0.00017582,2]
[408189144,1773197438712,-9999.99,0.00017728,2]
[408189145,1773197438721,-299.99,0.00017728,4]
[408189146,1773197438730,-5335.38,0.00017728,2]
[408189147,1773197438739,-150.99,0.00017728,2]
[408189148,1773197438749,-63311.55,0.00017728,2]
[408189149,1773197438758,-2917.19,0.00017728,2]
[408189150,1773197438767,-326.7545929,0.00017773,2]
[408189151,1773197438775,-800.9737091,0.00017808,2]
[408189152,1773197438784,-4254.64082638,0.00017849,2]
[408189153,1773197438793,-4767.38,0.00017867,2]
[408189154,1773197438802,-534.3228567,0.000179,2]
[408189155,1773197438811,-250.0,0.00018141,2]
[408189156,1773197438820,-421.0,0.00018156,2]
[408189157,1773197438829,-3292.0,0.00018365,2]
[408189158,1773197438838,-2807.0,0.0001872,2]
[408189159,1773197438848,-296.75496853,0.00019,2]
[408189160,1773197438859,-2807.0,0.0001904,2]
[408189161,1773197438868,-1005.0,0.0001904,2]
[408189162,1773197438878,-278.0,0.00019103,2]
[408189163,1773197438887,-278.0,0.00019167,2]
[408189164,1773197438896,-150.14636363,0.00019178,2]
[408189165,1773197438905,-278.0,0.0001918,2]
[408189166,1773197438914,-19742.04,0.000192,2]
[408189167,1773197438924,-485.24,0.00019297,2]
[408189168,1773197438933,-2807.0,0.0001936,2]
[408189169,1773197438943,-278.0,0.00019393,2]
[408189170,1773197438952,-278.0,0.00019401,2]
[408189171,1773197438962,-500.0,0.00019409,2]
[408189172,1773197438971,-278.0,0.00019459,2]
[408189173,1773197438981,-278.0,0.00019517,2]
[408189174,1773197438993,-485.24,0.00019571,2]
[408189175,1773197439002,-292.37,0.000196,30]
[408189176,1773197439011,-170.38451408,0.00019626,2]
[408189177,1773197439021,-2807.0,0.0001968,2]
[408189178,1773197439030,-308.0,0.0001968,2]
[408189179,1773197439040,-2807.0,0.0001968,2]
[408189180,1773197439051,-278.0,0.00019708,2]
[408189181,1773197439060,-150.0,0.00019725,2]
[408189182,1773197439070,-150.0,0.00019725,2]
[408189183,1773197439079,-150.0,0.00019725,2]
[408189184,1773197439096,-500.0,0.00019725,2]
[408189185,1773197439110,-500.0,0.00019725,2]
[408189186,1773197439120,-500.0,0.00019725,2]
[408189187,1773197439130,-500.0,0.00019725,2]
[408189188,1773197439139,-500.0,0.00019725,2]
[408189189,1773197439149,-500.0,0.00019725,2]
[408189190,1773197439159,-500.0,0.00019725,2]
[408189191,1773197439168,-150.0,0.00019725,2]
[408189192,1773197439177,-500.0,0.00019725,2]
[408189193,1773197439186,-500.0,0.00019725,2]
[408189194,1773197439195,-150.0,0.00019725,2]
[408189195,1773197439204,-500.0,0.00019725,2]
[408189196,1773197439213,-500.0,0.00019725,2]
[408189197,1773197439222,-500.0,0.00019725,2]
[408189198,1773197439231,-150.0,0.00019725,2]
[408189199,1773197439241,-150.0,0.00019725,2]
[408189200,1773197439250,-150.0,0.00019725,2]
[408189201,1773197439259,-500.0,0.00019725,2]
[408189202,1773197439269,-150.0,0.00019725,2]
[408189203,1773197439281,-151.61662366,0.00019725,2]
[408189204,1773197439290,-205.69153051,0.00019725,2]
[408189205,1773197439299,-150.0,0.00019725,2]
[408189206,1773197439308,-150.0,0.00019725,2]
[408189207,1773197439318,-500.0,0.00019725,2]
[408189208,1773197439327,-500.0,0.00019725,2]
[408189209,1773197439336,-150.0,0.00019725,2]
[408189210,1773197439345,-500.0,0.00019725,2]
[408189211,1773197439355,-150.0,0.00019725,2]
[408189212,1773197439365,-150.0,0.00019725,2]
[408189213,1773197439374,-252.392087,0.00019725,2]
[408189214,1773197439384,-500.0,0.00019725,2]
[408189215,1773197439394,-150.0,0.00019725,2]
[408189216,1773197439405,-500.0,0.00019726,2]
[408189217,1773197439414,-439.94423244,0.00019726,2]
[408189218,1773197439423,-1767.47,0.00019726,2]
[408189219,1773197439433,-1767.47,0.00019726,2]
[408189220,1773197439443,-1767.47,0.00019726,2]
[408189221,1773197439453,-1767.47,0.00019726,2]
[408189222,1773197439463,-1767.47,0.00019726,2]
[408189223,1773197439472,-1767.47,0.00019726,2]
[408189224,1773197439482,-1767.47,0.00019726,2]
[408189225,1773197439491,-1767.47,0.00019726,2]
[408189226,1773197439500,-1767.47,0.00019726,2]
[408189227,1773197439511,-1767.47,0.00019726,2]
[408189228,1773197439521,-1767.47,0.00019726,2]
[408189229,1773197439530,-1767.47,0.00019726,2]
[408189230,1773197439540,-1767.47,0.00019726,2]
[408189231,1773197439550,-1767.47,0.00019726,2]
[408189232,1773197439560,-1767.47,0.00019726,2]
[408189233,1773197439569,-1767.47,0.00019726,2]
[408189234,1773197439578,-1767.47,0.00019726,2]
[408189235,1773197439587,-1767.47,0.00019726,2]
[408189236,1773197439596,-1767.47,0.00019726,2]
[408189237,1773197439605,-1767.47,0.00019726,2]
[408189238,1773197439615,-1767.47,0.00019726,2]
[408189239,1773197439624,-1767.47,0.00019726,2]
[408189240,1773197439634,-1767.47,0.00019726,2]
[408189241,1773197439643,-1767.6607929,0.00019726,2]
[408189242,1773197439652,-500.0,0.00019726,2]
[408189243,1773197439662,-500.62592271,0.00019726,2]
[408189244,1773197439672,-1198.58,0.00019726,2]
[408189245,1773197439681,-1198.58,0.00019726,2]
[408189246,1773197439691,-1198.58,0.00019726,2]
[408189247,1773197439702,-1198.58,0.00019726,2]
[408189248,1773197439711,-1198.58,0.00019726,2]
[408189249,1773197439720,-1198.58,0.00019726,2]
[408189250,1773197439730,-1198.58,0.00019726,2]
[408189251,1773197439739,-1198.58,0.00019726,2]
[408189252,1773197439748,-1198.58,0.00019726,2]
[408189253,1773197439758,-1198.58,0.00019726,2]
[408189254,1773197439768,-1198.58,0.00019726,2]
[408189255,1773197439778,-1198.58,0.00019726,2]
[408189256,1773197439789,-1198.58,0.00019726,2]
[408189257,1773197439798,-1198.58,0.00019726,2]
[408189258,1773197439808,-1198.58,0.00019726,2]
[408189260,1773197439817,-1198.58,0.00019726,2]
[408189261,1773197439826,-1198.58,0.00019726,2]
[408189262,1773197439836,-1198.58,0.00019726,2]
[408189263,1773197439845,-1198.58,0.00019726,2]
[408189264,1773197439855,-1198.58,0.00019726,2]
[408189265,1773197439866,-1198.58,0.00019726,2]
[408189266,1773197439875,-1198.58,0.00019726,2]
[408189268,1773197439885,-1198.58,0.00019726,2]
[408189270,1773197439894,-1198.69073917,0.00019726,2]
[408189271,1773197439904,-500.0,0.00019726,2]
[408189272,1773197439913,-500.0,0.00019726,2]
[408189273,1773197439923,-500.0,0.00019726,2]
[408189274,1773197439932,-220.0803754,0.00019726,2]
[408189275,1773197439942,-300.0,0.00019726,2]
[408189276,1773197439952,-300.0,0.00019726,2]
[408189277,1773197439962,-300.0,0.00019726,2]
[408189278,1773197439973,-300.0,0.00019726,2]
[408189279,1773197439986,-300.0,0.00019726,2]
[408189280,1773197440000,-300.0,0.00019726,2]
[408189281,1773197440010,-300.0,0.00019726,2]
[408189282,1773197440020,-300.0,0.00019726,2]
[408189283,1773197440031,-300.0,0.00019726,2]
[408189284,1773197440040,-300.0,0.00019726,2]
[408189285,1773197440050,-300.0,0.00019726,2]
[408189286,1773197440059,-300.0,0.00019726,2]
[408189287,1773197440071,-303.10685583,0.00019726,2]
[408189288,1773197440080,-1600.0,0.00019753,2]
[408189289,1773197440090,-150.0,0.0001978,2]
[408189290,1773197440100,-150.0,0.0001978,2]
[408189291,1773197440110,-150.0,0.0001978,2]
[408189292,1773197440119,-500.0,0.0001978,2]
[408189293,1773197440128,-648.99053488,0.0001978,2]
[408189294,1773197440138,-500.0,0.0001978,2]
[408189295,1773197440148,-500.0,0.0001978,2]
[408189296,1773197440157,-500.0,0.0001978,2]
[408189297,1773197440167,-500.0,0.0001978,2]
[408189298,1773197440177,-500.0,0.0001978,2]
[408189299,1773197440387,-150.0,0.0001978,2]
[408189300,1773197440396,-500.0,0.0001978,2]
[408189301,1773197440406,-150.0,0.0001978,2]
[408189302,1773197440417,-551.04601421,0.0001978,2]
[408189303,1773197440426,-600.74757442,0.0001978,2]
[408189304,1773197440436,-500.0,0.0001978,2]
[408189305,1773197440445,-500.0,0.0001978,2]
[408189306,1773197440455,-150.0,0.0001978,2]
[408189307,1773197440465,-250.0,0.0001978,2]
[408189308,1773197440475,-202.58174361,0.0001978,2]
[408189309,1773197440484,-500.0,0.0001978,2]
[408189310,1773197440493,-150.0,0.0001978,2]
[408189311,1773197440504,-150.0,0.0001978,2]
[408189312,1773197440513,-150.20209622,0.0001978,2]
[408189313,1773197440523,-500.0,0.0001978,2]
[408189314,1773197440532,-500.0,0.0001978,2]
[408189315,1773197440542,-150.0,0.0001978,2]
[408189316,1773197440551,-500.0,0.0001978,2]
[408189317,1773197440561,-500.0,0.0001978,2]
[408189318,1773197440571,-150.0,0.0001978,2]
[408189319,1773197440580,-278.0,0.00019812,2]
[408189320,1773197440589,-278.0,0.00019818,2]
[408189321,1773197440598,-150.0,0.00019835,2]
[408189322,1773197440608,-150.0,0.00019835,2]
[408189323,1773197440617,-150.0,0.00019835,2]
[408189324,1773197440626,-500.0,0.00019835,2]
[408189325,1773197440635,-500.0,0.00019835,2]
[408189326,1773197440644,-500.0,0.00019835,2]
[408189327,1773197440654,-500.0,0.00019835,2]
[408189328,1773197440663,-500.0,0.00019835,2]
[408189329,1773197440672,-481.15463287,0.00019835,2]
[408189330,1773197440682,-150.0,0.00019835,2]
[408189331,1773197440691,-500.0,0.00019835,2]
[408189332,1773197440701,-207.78302129,0.00019835,2]
[408189333,1773197440710,-500.0,0.00019835,2]
[408189334,1773197440720,-504.90199074,0.00019835,2]
[408189335,1773197440729,-150.0,0.00019835,2]
[408189336,1773197440738,-500.0,0.00019835,2]
[408189337,1773197440747,-150.0,0.00019835,2]
[408189338,1773197440755,-150.0,0.00019835,2]
[408189339,1773197440765,-153.26158094,0.00019835,2]
[408189340,1773197440774,-453.86401705,0.00019835,2]
[408189341,1773197440783,-209.8782102,0.00019835,2]
[408189342,1773197440792,-500.0,0.00019835,2]
[408189343,1773197440801,-500.0,0.00019835,2]
[408189344,1773197440810,-202.61389181,0.00019835,2]
[408189345,1773197440819,-4486.1846,0.00019845,2]
[408189346,1773197440828,-485.24,0.00019845,2]
[408189347,1773197440837,-275.17021168,0.00019889,2]
[408189348,1773197440846,-205.57005763,0.00019889,2]
[408189349,1773197440855,-250.58262965,0.00019889,2]
[408189350,1773197440865,-500.0,0.00019889,2]
[408189351,1773197440875,-500.0,0.00019889,2]
[408189352,1773197440884,-500.0,0.00019889,2]
[408189353,1773197440894,-500.0,0.00019889,2]
[408189354,1773197440904,-500.0,0.00019889,2]
[408189355,1773197440914,-150.0,0.00019889,2]
[408189356,1773197440923,-500.0,0.00019889,2]
[408189357,1773197440932,-500.0,0.00019889,2]
[408189358,1773197440942,-150.0,0.00019889,2]
[408189359,1773197440952,-500.0,0.00019889,2]
[408189360,1773197440963,-247.84097861,0.00019889,2]
[408189361,1773197440972,-152.23722252,0.00019889,2]
[408189362,1773197440985,-500.0,0.00019889,2]
[408189363,1773197440994,-500.0,0.00019889,2]
[408189364,1773197441003,-500.0,0.00019898,2]
[408189365,1773197441013,-169.84,0.000199,2]
[408189366,1773197441024,-1045.63398013,0.000199,2]
[408189367,1773197441034,-500.0,0.00019944,2]
[408189368,1773197441043,-500.0,0.00019944,2]
[408189369,1773197441052,-500.0,0.00019944,2]
[408189370,1773197441063,-500.0,0.00019944,2]
[408189371,1773197441072,-500.0,0.00019944,2]
[408189372,1773197441082,-150.0,0.00019944,2]
[408189373,1773197441092,-500.0,0.00019944,2]
[408189374,1773197441102,-500.0,0.00019944,2]
[408189375,1773197441112,-183.49211443,0.00019944,2]
[408189376,1773197441121,-150.0,0.00019944,2]
[408189377,1773197441131,-342.13396594,0.00019944,2]
[408189378,1773197441140,-342.97136106,0.00019944,2]
[408189379,1773197441150,-510.77564098,0.00019999,2]
[408189380,1773197441160,-500.0,0.00019999,2]
[408189381,1773197441170,-500.0,0.00019999,2]
[408189382,1773197441179,-500.0,0.00019999,2]
[408189383,1773197441189,-500.0,0.00019999,2]
[408189384,1773197441199,-200.54971952,0.00019999,2]
[408189385,1773197441208,-500.0,0.00019999,2]
[408189386,1773197441217,-500.0,0.00019999,2]
[408189387,1773197441226,-1054.91234,0.0002,2]
[408189388,1773197441235,-150.0,0.0002,7]
[408189389,1773197441245,-30102.0,0.0002,7]
[408189390,1773197441255,-172.95802059,0.0002,7]
[408189391,1773197441264,-278.0,0.00020027,2]
[408189392,1773197441273,-278.0,0.00020029,2]
[408189393,1773197441283,-155.04313062,0.00020054,2]
[408189394,1773197441292,-500.0,0.00020054,2]
[408189395,1773197441302,-500.0,0.00020054,2]
[408189396,1773197441311,-500.0,0.00020054,2]
[408189397,1773197441320,-450.62449707,0.00020054,2]
[408189398,1773197441329,-500.0,0.00020054,2]
[408189399,1773197441339,-278.0,0.00020082,2]
[408189400,1773197441348,-401.99957865,0.00020109,2]
[408189401,1773197441358,-500.0,0.00020109,2]
[408189402,1773197441367,-261.47135682,0.00020109,2]
[408189404,1773197441376,-500.0,0.00020109,2]
[408189405,1773197441385,-485.24,0.00020119,2]
[408189406,1773197441395,-278.0,0.00020136,2]
[408189407,1773197441405,-278.0,0.00020151,2]
[408189408,1773197441414,-500.0,0.00020163,2]
[408189409,1773197441424,-516.59135626,0.00020163,2]
[408189410,1773197441434,-278.0,0.00020186,2]
[408189411,1773197441443,-537.0,0.00020202,2]
[408189412,1773197441454,-500.0,0.00020218,2]
[408189413,1773197441464,-278.0,0.00020262,2]
[408189414,1773197441473,-500.0,0.00020273,2]
[408189415,1773197441482,-500.0,0.00020328,2]
[408189416,1773197441495,-398.88764252,0.00020383,2]
[408189417,1773197441505,-405.76,0.00020393,2]
[408189418,1773197441515,-278.0,0.00020453,2]
[408189419,1773197441524,-278.0,0.00020521,2]
[408189420,1773197441534,-367.09,0.000206,2]
[408189421,1773197441543,-278.0,0.00020672,2]
[408189422,1773197441553,-278.0,0.00020764,2]
[408189423,1773197441563,-19742.04,0.000208,2]
[408189424,1773197441573,-278.0,0.00020827,2]
[408189425,1773197441582,-278.0,0.00020923,2]
[408189426,1773197441592,-278.0,0.00020941,2]
[408189427,1773197441601,-278.0,0.00021024,2]
[408189428,1773197441610,-1000.0,0.00021192,2]
[408189429,1773197441620,-502.0,0.000212,5]
[408189430,1773197441629,-1000.0,0.00021466,2]
[408189431,1773197441653,-441.49496967,0.0002174,2]
[408189432,1773197441704,-3240.0,0.00016361,2]
[408189433,1773197441714,-9236.46989543,0.00017593,2]
[408189434,1773197441724,-558.50503033,0.0002174,2]
[408189435,1773197441733,-2306.17743646,0.00021843,2]
[408189436,1773197441745,-1948.46338992,0.00021843,2]
[408189437,1773197441754,-150.0,0.00021918,2]
[408189438,1773197441764,-150.0,0.00021918,2]
[408189439,1773197441773,-1501.42190289,0.00021948,2]
[408189440,1773197441797,-98.57809711,0.00021948,2]
[408189441,1773197441806,-150.0,0.00021973,2]
[408189442,1773197441816,-492.6504384,0.00022008,14]
[408189443,1773197441826,-1000.0,0.00022014,2]
[408189444,1773197441835,-161.87934117,0.00022028,2]
[408189445,1773197441845,-1000.0,0.00022288,2]
[408189446,1773197441854,-1000.0,0.00022562,2]
[408189447,1773197441864,-1000.0,0.00022836,2]
[408189448,1773197441874,-533.36,0.00023092,2]
[408189449,1773197441883,-1958.0,0.0002311,2]
[408189450,1773197441895,-346.37,0.00023366,2]
[408189451,1773197441904,-2780.7837015,0.0002343,2]
[408189452,1773197441914,-367.09,0.0002369,2]
[408189453,1773197441923,-496.2,0.0002378,2]
[408189454,1773197441932,-161.0,0.00023798,3]
[408189455,1773197441941,-19742.04,0.00024,7]
[408189456,1773197441951,-1600.0,0.00024142,2]
[408189457,1773197441961,-496.2,0.00024375,2]
[408189458,1773197441970,-226.2,0.000245,30]
[408189459,1773197441979,-1000.0,0.00024658,2]
[408189460,1773197441992,-150.0,0.00024658,2]
[408189461,1773197442002,-251.86409613,0.0002487,2]
[408189462,1773197442011,-500.0,0.00024899,2]
[408189463,1773197442021,-500.0,0.00024899,2]
[408189464,1773197442031,-127568.404874,0.000249,3]
[408189465,1773197442040,-496.22567832,0.00024969,2]
[408189466,1773197442050,-502.0,0.000254,9]
[408189467,1773197442060,-4254.64082638,0.00025837,2]
[408189468,1773197442070,-150.0,0.0002589,2]
[408189469,1773197442079,-150.0,0.000263,14]
[408189470,1773197442089,-1600.0,0.00026337,120]
[408189471,1773197442102,-688.0,0.00026445,10]
[408189472,1773197442111,-150.0,0.00027185,2]
[408189473,1773197442120,-150.0,0.00027369,2]
[408189474,1773197442130,-300.0,0.00027397,2]
[408189475,1773197442139,-1000.0,0.00027397,20]
[408189476,1773197442148,-12930.97,0.00027397,10]
[408189477,1773197442158,-10775.8,0.00027397,10]
[408189478,1773197442167,-8979.84,0.00027397,10]
[408189479,1773197442177,-7483.2,0.00027397,10]
[408189480,1773197442186,-367.09,0.0002781,2]
[408189481,1773197442195,-304.98583032,0.00028138,2]
[408189482,1773197442205,-150.0,0.00028544,2]
[408189483,1773197442214,-502.0,0.000296,13]
[408189484,1773197442223,-19742.04,0.000297,7]
[408189485,1773197442232,-4254.64082638,0.00029831,2]
[408189486,1773197442241,-251.86409613,0.00029876,2]
[408189487,1773197442253,-150.0,0.00029971,2]
[408189488,1773197442262,-500.0,0.00030199,2]
[408189489,1773197442271,-3521.771,0.0003065,2]
[408189490,1773197442281,-621.67,0.0003065,2]
[408189491,1773197442290,-1347.32,0.0003065,2]
[408189492,1773197442303,-925.072,0.0003065,2]
[408189493,1773197442312,-1217.178,0.0003065,2]
[408189494,1773197442321,-415.734,0.0003065,2]
[408189495,1773197442331,-3751.0,0.0003065,2]
[408189496,1773197442341,-234.65,0.00031416,2]
[408189497,1773197442350,-150.0,0.0003147,2]
[408189498,1773197442359,-2807.0,0.00031715,3]
[408189499,1773197442368,-166.2,0.00032041,14]
[408189500,1773197442378,-2000.0,0.000323,2]
[408189501,1773197442387,-150.0,0.00033,30]
[408189502,1773197442396,-150.0,0.00033043,2]
[408189503,1773197442406,-502.0,0.000338,17]
[408189504,1773197442415,-4254.64082638,0.00033824,2]
[408189505,1773197442424,-1000.0,0.00033877,90]
[408189506,1773197442433,-307.291,0.00033877,120]
[408189507,1773197442442,-2000.0,0.000342,120]
[408189508,1773197442452,-2000.0,0.000342,120]
[408189509,1773197442461,-2000.0,0.000342,120]
[408189510,1773197442470,-2000.0,0.000342,120]
[408189511,1773197442480,-2000.0,0.000342,120]
[408189512,1773197442491,-2000.0,0.000342,120]
[408189513,1773197442503,-2000.0,0.000342,120]
[408189514,1773197442512,-2000.0,0.000342,120]
[408189515,1773197442521,-2000.0,0.000342,120]
[408189516,1773197442530,-2000.0,0.000342,120]
[408189517,1773197442539,-2000.0,0.000342,120]
[408189518,1773197442548,-2000.0,0.000342,120]
[408189519,1773197442558,-2000.0,0.000342,120]
[408189520,1773197442567,-2000.0,0.000342,120]
[408189521,1773197442576,-2000.0,0.000342,120]
[408189522,1773197442585,-2000.0,0.000342,120]
[408189523,1773197442594,-2000.0,0.000342,120]
[408189524,1773197442603,-2000.0,0.000342,120]
[408189525,1773197442612,-2000.0,0.000342,120]
[408189526,1773197442621,-2000.0,0.000342,120]
[408189527,1773197442630,-2000.0,0.000342,120]
[408189528,1773197442649,-2000.0,0.000342,120]
[408189529,1773197442658,-2000.0,0.000342,120]
[408189530,1773197442667,-2000.0,0.000342,120]
[408189531,1773197442676,-2000.0,0.000342,120]
[408189533,1773197442685,-2000.0,0.000342,120]
[408189536,1773197442695,-2000.0,0.000342,120]
[408189538,1773197442704,-2000.0,0.000342,120]
[408189540,1773197442713,-2000.0,0.000342,120]
[408189542,1773197442722,-2000.0,0.000342,120]
[408189544,1773197442731,-2000.0,0.000342,120]
[408189545,1773197442741,-2000.0,0.000342,120]
[408189546,1773197442800,-178.561,0.000342,120]
[408189547,1773197442810,-150.0,0.00034696,2]
[408189548,1773197442819,-170.38451406,0.00034763,2]
[408189549,1773197442828,-1500.0,0.00034795,2]
[408189550,1773197442837,-19742.04,0.000348,14]
[408189551,1773197442847,-251.86409613,0.00034882,2]
[408189552,1773197442858,-160.0,0.00035,120]
[408189553,1773197442875,-2419.0,0.00035434,5]
[408189554,1773197442887,-1936.0,0.00035434,5]
[408189555,1773197442896,-5128.579707,0.00036,120]